[Event "*** Titled Tuesday 3|2 Blitz"]
[Site "Chess.com"]
[Date "2016.03.01"]
[Round "1"]
[White "AndrewMcStone"]
[Black "underdogchss"]
[Result "1/2-1/2"]
[WhiteElo "1957"]
[BlackElo "2291"]
[TimeControl "180+2"]
[EndTime "11:11:38 PST"]
[Termination "Game drawn by repetition"]

1. d4 {[%clk 0:02:56.3]} 1... Nf6 {[%clk 0:03:00.4]} 2. c4 {[%clk 0:02:56.9]}
2... e6 {[%clk 0:03:01.1]} 3. Nc3 {[%clk 0:02:55.9]} 3... Bb4 {[%clk 0:03:00]}
4. f3 {[%clk 0:02:56.8]} 4... d5 {[%clk 0:02:56.2]} 5. a3 {[%clk 0:02:56.8]}
5... Be7 {[%clk 0:02:56.1]} 6. e4 {[%clk 0:02:56.7]} 6... dxe4 {[%clk
0:02:56.6]} 7. fxe4 {[%clk 0:02:58.6]} 7... c5 {[%clk 0:02:54.9]} 8. d5 {[%clk
0:02:51.7]} 8... exd5 {[%clk 0:02:55.4]} 9. cxd5 {[%clk 0:02:50.7]} 9... Bd6
{[%clk 0:02:46.1]} 10. Nf3 {[%clk 0:02:47]} 10... O-O {[%clk 0:02:43.9]} 11. Bd3
{[%clk 0:02:40]} 11... Nbd7 {[%clk 0:02:43.9]} 12. O-O {[%clk 0:02:33.8]} 12...
a6 {[%clk 0:02:43.5]} 13. Bg5 {[%clk 0:02:07.9]} 13... Qc7 {[%clk 0:02:24.7]}
14. Qe1 {[%clk 0:01:40.2]} 14... Ng4 {[%clk 0:02:12.2]} 15. Qh4 {[%clk
0:01:28.1]} 15... Nge5 {[%clk 0:02:05.6]} 16. Bc2 {[%clk 0:01:02.2]} 16... f6
{[%clk 0:01:47.7]} 17. Bc1 {[%clk 0:00:43.9]} 17... b5 {[%clk 0:01:46.2]} 18.
Nxe5 {[%clk 0:00:18.4]} 18... Nxe5 {[%clk 0:01:45.9]} 19. Ne2 {[%clk 0:00:09.4]}
19... Bg4 {[%clk 0:01:28]} 20. Ng3 {[%clk 0:00:09.6]} 20... Rae8 {[%clk
0:01:18]} 21. h3 {[%clk 0:00:09.3]} 21... Bc8 {[%clk 0:01:17.3]} 22. Nf5 {[%clk
0:00:08.6]} 22... Bxf5 {[%clk 0:01:15.2]} 23. Rxf5 {[%clk 0:00:10.5]} 23... c4
{[%clk 0:01:13.2]} 24. Be3 {[%clk 0:00:10.6]} 24... Bc5 {[%clk 0:01:11.1]} 25.
Qf2 {[%clk 0:00:09.6]} 25... Nd7 {[%clk 0:01:05]} 26. Re1 {[%clk 0:00:07.5]}
26... Bd6 {[%clk 0:01:01.6]} 27. Bd4 {[%clk 0:00:07.2]} 27... Be5 {[%clk
0:01:01.5]} 28. Bxe5 {[%clk 0:00:07.9]} 28... Nxe5 {[%clk 0:01:02.5]} 29. Rd1
{[%clk 0:00:06.4]} 29... Qd6 {[%clk 0:01:03.5]} 30. Qd4 {[%clk 0:00:06.7]} 30...
Rc8 {[%clk 0:00:55.3]} 31. Rdf1 {[%clk 0:00:06.6]} 31... Rfe8 {[%clk 0:00:55.1]}
32. g4 {[%clk 0:00:06.8]} 32... h6 {[%clk 0:00:55.1]} 33. Kg2 {[%clk 0:00:07.9]}
33... c3 {[%clk 0:00:47]} 34. bxc3 {[%clk 0:00:07.6]} 34... Rc4 {[%clk
0:00:48.2]} 35. Qf2 {[%clk 0:00:08.3]} 35... Rxc3 {[%clk 0:00:47.8]} 36. Bb1
{[%clk 0:00:09.5]} 36... Rec8 {[%clk 0:00:45.6]} 37. Qh4 {[%clk 0:00:09.9]}
37... Ng6 {[%clk 0:00:45]} 38. Qh5 {[%clk 0:00:10.3]} 38... Qg3+ {[%clk
0:00:44.3]} 39. Kh1 {[%clk 0:00:11.5]} 39... Rc2 {[%clk 0:00:19.4]} 40. Bxc2
{[%clk 0:00:10.1]} 40... Rxc2 {[%clk 0:00:20.9]} 41. R5f2 {[%clk 0:00:07.7]}
41... Rxf2 {[%clk 0:00:20.3]} 42. Rxf2 {[%clk 0:00:09.2]} 42... Qxf2 {[%clk
0:00:20.4]} 43. Qxg6 {[%clk 0:00:10.6]} 43... Qf3+ {[%clk 0:00:20.7]} 44. Kg1
{[%clk 0:00:11.5]} 44... Qe3+ {[%clk 0:00:20.6]} 45. Kh2 {[%clk 0:00:11.8]}
45... Kf8 {[%clk 0:00:21]} 46. Qf5 {[%clk 0:00:09.5]} 46... Qxa3 {[%clk
0:00:18.5]} 47. Qc8+ {[%clk 0:00:10.1]} 47... Kf7 {[%clk 0:00:19.1]} 48. Qc7+
{[%clk 0:00:10.8]} 48... Kg6 {[%clk 0:00:19.2]} 49. d6 {[%clk 0:00:11.1]} 49...
Qb2+ {[%clk 0:00:18.5]} 50. Kh1 {[%clk 0:00:12.4]} 50... Qb1+ {[%clk 0:00:18.5]}
51. Kh2 {[%clk 0:00:13.8]} 51... Qb2+ {[%clk 0:00:15.7]} 52. Kh1 {[%clk
0:00:14.9]} 52... Qa1+ {[%clk 0:00:14.9]} 53. Kh2 {[%clk 0:00:16.1]} 53... Qe5+
{[%clk 0:00:15.6]} 54. Kg1 {[%clk 0:00:15.7]} 54... Qg3+ {[%clk 0:00:16.3]} 55.
Kf1 {[%clk 0:00:16.9]} 55... Qxh3+ {[%clk 0:00:17.5]} 56. Kf2 {[%clk 0:00:18.2]}
56... Qh2+ {[%clk 0:00:17.6]} 57. Kf1 {[%clk 0:00:18.7]} 57... Qf4+ {[%clk
0:00:18.3]} 58. Kg2 {[%clk 0:00:17.3]} 58... Qxe4+ {[%clk 0:00:18.6]} 59. Kh3
{[%clk 0:00:18]} 59... Qf3+ {[%clk 0:00:17.7]} 60. Kh2 {[%clk 0:00:19.2]} 60...
Qf4+ {[%clk 0:00:18.1]} 61. Kh3 {[%clk 0:00:19.5]} 61... Qe3+ {[%clk 0:00:18.2]}
62. Kh2 {[%clk 0:00:20.4]} 62... Qe2+ {[%clk 0:00:19.1]} 63. Kh3 {[%clk
0:00:19.8]} 63... Qe3+ {[%clk 0:00:17.4]} 64. Kh2 {[%clk 0:00:19.6]} 64... Kg5
{[%clk 0:00:18.6]} 65. d7 {[%clk 0:00:17.7]} 65... Qe2+ {[%clk 0:00:17.8]} 66.
Kh1 {[%clk 0:00:11.5]} 66... Qf1+ {[%clk 0:00:16.9]} 67. Kh2 {[%clk 0:00:12.4]}
67... Qf2+ {[%clk 0:00:14.6]} 68. Kh1 {[%clk 0:00:13.5]} 68... Qf3+ {[%clk
0:00:11.3]} 69. Kh2 {[%clk 0:00:13.2]} 69... Qf2+ {[%clk 0:00:10.9]} 70. Kh1
{[%clk 0:00:14.5]} 70... Qe1+ {[%clk 0:00:10]} 71. Kh2 {[%clk 0:00:15.2]} 71...
Qe2+ {[%clk 0:00:10.9]} 72. Kh1 {[%clk 0:00:16]} 72... Qe4+ {[%clk 0:00:11.7]}
73. Kh2 {[%clk 0:00:16.6]} 73... Qe2+ {[%clk 0:00:12.5]} 74. Kh1 {[%clk
0:00:17.8]} 74... Qf1+ {[%clk 0:00:10.6]} 75. Kh2 {[%clk 0:00:19]} 75... Qf2+
{[%clk 0:00:11.7]} 1/2-1/2